fUST/lending_fUST_20260201
["ID","MTS","AMOUNT","RATE_DAILY","PERIOD"]
[404156808,1769885775892,-500.0,0.00017599,2]
[404156809,1769885775921,-500.0,0.00017599,2]
[404156810,1769885775953,-500.0,0.00017599,2]
[404156811,1769885775984,-250.0,0.00017599,2]
[404156812,1769885776016,-500.0,0.00017599,2]
[404156813,1769885776047,-500.0,0.00017599,2]
[404156814,1769885776077,-500.0,0.00017599,2]
[404156815,1769885776103,-500.0,0.00017599,2]
[404156816,1769885776134,-500.0,0.00017599,2]
[404156817,1769885776166,-500.0,0.00017599,2]
[404156818,1769885776196,-500.0,0.00017599,2]
[404156819,1769885776225,-500.0,0.00017599,2]
[404156820,1769885776255,-650.0,0.00017599,2]
[404156821,1769885776283,-500.0,0.00017599,2]
[404156822,1769885776310,-500.0,0.00017599,2]
[404156823,1769885776338,-500.0,0.00017599,2]
[404156824,1769885776373,-500.0,0.00017599,2]
[404156825,1769885776403,-500.0,0.00017599,2]
[404156826,1769885776433,-500.0,0.00017599,2]
[404156827,1769885776466,-373.94749978,0.000176,2]
[404156828,1769885776495,-500.0,0.000176,2]
[404156829,1769885776523,-221.54571309,0.000176,2]
[404156830,1769885776551,-309.23387704,0.000176,2]
[404156831,1769885776576,-160.26321419,0.000176,2]
[404156832,1769885776603,-227.19024146,0.000176,2]
[404156833,1769885776748,-202.00877965,0.000176,2]
[404156834,1769885776780,-500.0,0.000176,2]
[404156835,1769885776808,-500.0,0.000176,2]
[404156836,1769885776833,-246.33671142,0.000176,2]
[404156837,1769885776861,-500.0,0.000176,2]
[404156838,1769885776889,-24122.3413507,0.00017601,2]
[404156839,1769885776923,-50000.0,0.00017601,2]
[404156840,1769885776966,-50000.0,0.00017601,2]
[404156841,1769885777007,-50000.0,0.00017601,2]
[404156842,1769885777046,-50000.0,0.00017601,2]
[404156843,1769885777093,-50000.0,0.00017601,2]
[404156844,1769885777131,-50000.0,0.00017599,2]
[404156845,1769885777165,-532.055889,0.0001758,2]
[404156846,1769885777193,-49467.944111,0.00017601,2]
[404156847,1769885777237,-50000.0,0.00017601,2]
[404156848,1769885777271,-50000.0,0.00017601,2]
[404156849,1769885777993,-50000.0,0.00017601,2]
[404156850,1769885778414,-50000.0,0.00017601,2]
[404156851,1769885778847,-50000.0,0.00017601,2]
[404156852,1769885779316,-50000.0,0.00017601,2]
[404156853,1769885779782,-50000.0,0.00017601,2]
[404156854,1769885780181,500.0,0.00036161,120]
[404156855,1769885780238,-50000.0,0.00017601,2]
[404156856,1769885780911,-50000.0,0.00017601,2]
[404156857,1769885782045,505.55477967,0.00036161,120]
[404156858,1769885782091,-50000.0,0.00017601,2]
[404156859,1769885786275,-50000.0,0.00017601,2]
[404156860,1769885794092,-50000.0,0.00017601,2]
[404156861,1769885794537,-50000.0,0.00017601,2]
[404156862,1769885794854,-50000.0,0.00017601,2]
[404156863,1769885795304,-50000.0,0.00017601,2]
[404156864,1769885795645,-50000.0,0.00017601,2]
[404156865,1769885796269,-50000.0,0.00017601,2]
[404156866,1769885796697,-50000.0,0.00017601,2]
[404156867,1769885796851,250.0,0.0001709,2]
[404156868,1769885797124,-50000.0,0.00017601,2]
[404156869,1769885797545,-50000.0,0.00017601,2]
[404156870,1769885797957,-50000.0,0.00017601,2]
[404156871,1769885807551,500.0,0.00036161,120]
[404156872,1769885807951,4141.13177812,0.00036161,20]
[404156873,1769885814553,513.33562197,0.00036161,120]
[404156874,1769885824127,500.60380458,0.00013273,2]
[404156875,1769885824161,500.21047809,0.00013273,2]
[404156876,1769885824418,576.72437709,0.00013273,2]
[404156877,1769885825300,160.0,0.00036161,119]
[404156878,1769885825345,500.0,0.00013273,2]
[404156879,1769885825522,501.21229095,0.00013273,2]
[404156880,1769885825773,500.0,0.00013273,2]
[404156881,1769885825824,501.30398043,0.00013821,2]
[404156882,1769885825931,160.0,0.00036161,118]
[404156883,1769885826610,160.0,0.00036161,118]
[404156884,1769885827020,500.0,0.00013273,2]
[404156885,1769885827087,502.98054822,0.00013821,2]
[404156886,1769885827128,992.33103192,0.00036161,119]
[404156887,1769885827803,500.0,0.00036161,119]
[404156888,1769885827971,508.24952436,0.00013699,2]
[404156889,1769885830001,250.0,0.00036161,119]
[404156890,1769885836264,504.03210041,0.00036161,120]
[404156891,1769885836883,2579.99923267,0.00036161,20]
[404156892,1769885838135,301.09430416,0.00036161,120]
[404156893,1769885840010,501.9584245,0.00036161,120]
[404156896,1769885841892,516.45243589,0.00036161,120]
[404156897,1769885847485,544.62902877,0.00036161,120]
[404156898,1769885881117,543.10181702,0.00016307,2]
[404156899,1769885883259,977.58327064,0.00016698,2]
[404156900,1769885885267,1737.92581447,0.00017088,2]
[404156901,1769885888254,500.0,0.00013273,2]
[404156902,1769885888308,503.17437249,0.00013821,2]
[404156903,1769885895643,5738.22472538,0.00016595,2]
[404156904,1769885895666,10000.01,0.00016595,2]
[404156905,1769885912017,-2622.78265284,0.00016595,2]
[404156906,1769885915206,-10000.01,0.00016595,2]
[404156907,1769885921748,-10000.01,0.00016595,2]
[404156908,1769885921861,-10000.01,0.00016595,2]
[404156911,1769885943687,264.95517331,0.00013273,2]
[404156912,1769885943793,500.0,0.00013273,2]
[404156913,1769885943821,500.0,0.00013699,2]
[404156914,1769885943851,1000.0,0.00013821,2]
[404156915,1769885943878,157.30542113,0.00014247,2]
[404156916,1769885943910,1500.0,0.00014368,2]
[404156917,1769885943964,2000.0,0.00014916,2]
[404156918,1769885943992,500.56709487,0.00013699,2]
[404156919,1769885944024,500.0,0.00013699,2]
[404156920,1769885944050,1000.0,0.00014247,2]
[404156921,1769885944106,175.70742984,0.00014795,2]
[404156922,1769885946551,161.06413832,0.00013699,2]
[404156923,1769885947454,500.0,0.00013273,2]
[404156924,1769885947487,1000.0,0.00013821,2]
[404156925,1769885947542,240.41074253,0.00014368,2]
[404156926,1769885947564,1259.58925747,0.00014368,2]
[404156927,1769885947595,1500.0,0.00014916,2]
[404156930,1769885957450,364.34915641,0.00036839,120]
[404156932,1769885974219,5000.0,0.0001546,2]
[404156933,1769885996909,2240.42074253,0.0001546,2]
[404156934,1769885996932,2759.57925747,0.0001546,2]
[404156935,1769886005203,180.11046574,0.0001546,2]
[404156936,1769886020863,5000.0,0.0001546,2]
[404156937,1769886033943,703.1158352,0.00015308,2]
[404156938,1769886043731,1357.20444159,0.0001546,2]
[404156939,1769886043753,3642.79555841,0.0001546,2]
[404156940,1769886061448,-643.0,0.00015464,2]
[404156941,1769886061477,-2607.98000005,0.00015464,2]
[404156942,1769886061505,-500.0,0.00015464,2]
[404156943,1769886061534,-430.47934822,0.00015464,2]
[404156944,1769886061565,-300.0,0.00015773,2]
[404156945,1769886061703,-300.0,0.00015773,2]
[404156946,1769886061736,-137.09130346,0.00015773,2]
[404156947,1769886061946,-162.90869654,0.00015773,2]
[404156948,1769886061977,-300.0,0.00015773,2]
[404156949,1769886062010,-300.0,0.00015773,2]
[404156950,1769886062041,-300.0,0.00015773,2]
[404156951,1769886062071,-300.0,0.00015773,2]
[404156952,1769886062109,-300.0,0.00015773,2]
[404156953,1769886062140,-300.0,0.00015773,2]
[404156954,1769886062171,-300.0,0.00015773,2]
[404156955,1769886062203,-300.0,0.00015773,2]
[404156956,1769886062237,-300.0,0.00015773,2]
[404156957,1769886062267,-300.0,0.00015773,2]
[404156958,1769886062296,-300.0,0.00015773,2]
[404156959,1769886062326,-300.0,0.00015773,2]
[404156960,1769886062357,-243.70070488,0.00015914,2]
[404156961,1769886062385,-300.0,0.00016362,2]
[404156962,1769886062413,-300.0,0.00016362,2]
[404156963,1769886062442,-300.0,0.00016362,2]
[404156964,1769886062517,-300.0,0.00016362,2]
[404156965,1769886062545,-300.0,0.00016362,2]
[404156966,1769886062576,-1200.0,0.00016362,2]
[404156967,1769886062608,-500.0,0.00016362,2]
[404156968,1769886065326,-401.46391742,0.00013273,2]
[404156969,1769886065613,-104.55316109,0.00013273,2]
[404156970,1769886065643,-500.0,0.00013273,2]
[404156971,1769886065671,-500.0,0.00013273,2]
[404156972,1769886065699,-500.0,0.00013699,2]
[404156973,1769886065728,-500.0,0.00013699,2]
[404156974,1769886065757,-500.0,0.00013699,2]
[404156975,1769886065786,-500.0,0.00013699,2]
[404156976,1769886065928,-500.0,0.00013699,2]
[404156977,1769886065963,-1000.0,0.00013821,2]
[404156978,1769886065991,-290.4388164,0.00013821,2]
[404156979,1769886066130,-210.02604502,0.00013821,2]
[404156980,1769886066158,-502.37216285,0.00014247,2]
[404156981,1769886066184,-502.0914091,0.00014247,2]
[404156982,1769886066211,-502.67054401,0.00014247,2]
[404156983,1769886066239,-440.96392399,0.00014368,2]
[404156984,1769886066268,-300.0,0.00015463,2]
[404156985,1769886074195,-589.45287422,0.00013699,2]
[404156986,1769886074224,-502.99878118,0.00013699,2]
[404156987,1769886074254,-2815.1066892,0.00015308,2]
[404156988,1769886074411,-2184.8933108,0.00015308,2]
[404156989,1769886080666,-5356.30929512,0.00016363,2]
[404156990,1769886080728,-10000.01,0.00016363,2]
[404156991,1769886080892,-10000.01,0.00016363,2]
[404156992,1769886081200,557.10373238,0.00036839,120]
[404156993,1769886092318,500.0,0.00036839,120]
[404156994,1769886092595,163.999496,0.00036839,120]
[404156995,1769886097796,550.0,0.000273,120]
[404156996,1769886098134,-1573.05494358,0.00016363,2]
[404156997,1769886103207,403.204,0.00016363,2]
[404156998,1769886107009,500.0,0.00036839,120]
[404156999,1769886107219,500.0,0.00036839,120]
[404157000,1769886107487,500.0,0.00036839,120]
[404157001,1769886107741,500.0,0.00036839,120]
[404157002,1769886108011,500.0,0.00036839,120]
[404157003,1769886108253,500.0,0.00036839,120]
[404157004,1769886108513,500.0,0.00036839,120]
[404157005,1769886108806,500.0,0.00036839,120]
[404157006,1769886109044,506.49035068,0.00036839,120]
[404157008,1769886124848,500.0,0.00013699,2]
[404157009,1769886153788,-300.0,0.00016593,2]
[404157010,1769886153812,-500.6381265,0.00016594,2]
[404157011,1769886153838,-340.94147742,0.00016594,2]
[404157012,1769886153866,-500.0,0.00016594,2]
[404157013,1769886153891,-500.0,0.00016594,2]
[404157014,1769886153915,-500.0,0.00016594,2]
[404157015,1769886153941,-500.0,0.00016594,2]
[404157016,1769886153964,-500.0,0.00016594,2]
[404157017,1769886153988,-572.3550651,0.00016594,2]
[404157018,1769886154011,-500.0,0.00016594,2]
[404157019,1769886154033,-644.05363423,0.00016594,2]
[404157020,1769886154056,-42549.99877468,0.00016595,2]
[404157021,1769886154085,-600.0,0.00016689,2]
[404157022,1769886154110,-300.0,0.00016689,2]
[404157023,1769886154134,-300.0,0.00016689,2]
[404157024,1769886154158,-300.0,0.00016689,2]
[404157025,1769886154184,-300.0,0.00016689,2]
[404157026,1769886154208,-292.01292207,0.00016689,2]
[404157027,1769886155902,-7.98707793,0.00016689,2]
[404157028,1769886155931,-300.0,0.00016689,2]
[404157029,1769886155957,-300.0,0.00016689,2]
[404157030,1769886155983,-300.0,0.00016689,2]
[404157031,1769886156008,-300.0,0.00016689,2]
[404157032,1769886156034,-300.0,0.00016689,2]
[404157033,1769886156067,-300.0,0.00016689,2]
[404157034,1769886156097,-300.0,0.00016689,2]
[404157035,1769886156122,-300.0,0.00016689,2]
[404157036,1769886156148,-300.0,0.00016689,2]
[404157037,1769886156174,-300.0,0.00016689,2]
[404157038,1769886156199,-2715.50908511,0.00017478,2]
[404157039,1769886156234,-1458.38329281,0.00017501,2]
[404157040,1769886156259,-284.0,0.00017512,2]
[404157041,1769886156283,-377.66,0.0001757,3]
[404157042,1769886156306,-440.24726518,0.00017579,2]
[404157043,1769886156330,-500.0,0.00017579,2]
[404157044,1769886156354,-607.77746814,0.00017579,2]
[404157045,1769886156378,-308.17308562,0.00017579,2]
[404157046,1769886156402,-167.73496741,0.00017579,2]
[404157047,1769886156427,-159.03316902,0.00017579,2]
[404157048,1769886156453,-39973.49458878,0.0001758,2]
[404157049,1769886156517,-39326.65925402,0.0001758,2]
[404157050,1769886156543,-500.0,0.00017599,2]
[404157051,1769886156568,-500.0,0.00017599,2]
[404157052,1769886156595,-500.0,0.00017599,2]
[404157053,1769886156621,-500.0,0.000176,2]
[404157054,1769886156647,-500.0,0.000176,2]
[404157055,1769886156677,-500.0,0.000176,2]
[404157056,1769886156700,-500.0,0.000176,2]
[404157057,1769886156725,-369.69570277,0.000176,2]
[404157058,1769886156750,-500.0,0.000176,2]
[404157059,1769886156777,-500.0,0.000176,2]
[404157060,1769886156803,-500.0,0.000176,2]
[404157061,1769886156827,-500.0,0.000176,2]
[404157062,1769886156855,-500.0,0.000176,2]
[404157063,1769886156879,-500.0,0.000176,2]
[404157064,1769886156906,-500.0,0.000176,2]
[404157065,1769886156933,-500.0,0.000176,2]
[404157066,1769886156957,-500.0,0.000176,2]
[404157067,1769886156981,-500.0,0.000176,2]
[404157068,1769886157004,-500.0,0.000176,2]
[404157069,1769886157031,-500.0,0.000176,2]
[404157070,1769886157057,-500.0,0.000176,2]
[404157071,1769886157082,-303.64504321,0.000176,2]
[404157072,1769886157125,-196.35495679,0.000176,2]
[404157073,1769886157151,-500.0,0.000176,2]
[404157074,1769886157178,-159.05852257,0.000176,2]
[404157075,1769886157202,-500.0,0.000176,2]
[404157076,1769886157228,-500.0,0.000176,2]
[404157077,1769886157253,-500.0,0.000176,2]
[404157078,1769886157278,-185.32945583,0.000176,2]
[404157079,1769886157303,-500.0,0.000176,2]
[404157080,1769886157327,-500.0,0.000176,2]
[404157081,1769886157353,-500.0,0.000176,2]
[404157082,1769886157377,-500.0,0.000176,2]
[404157083,1769886157401,-500.0,0.000176,2]
[404157084,1769886157430,-500.0,0.000176,2]
[404157085,1769886157455,-500.0,0.000176,2]
[404157086,1769886157480,-500.0,0.000176,2]
[404157087,1769886157504,-500.0,0.000176,2]
[404157088,1769886157528,-500.0,0.000176,2]
[404157089,1769886157552,-500.0,0.000176,2]
[404157090,1769886157576,-500.0,0.000176,2]
[404157091,1769886157601,-500.0,0.000176,2]
[404157092,1769886157627,-500.0,0.000176,2]
[404157093,1769886157652,-500.0,0.000176,2]
[404157094,1769886157680,-500.0,0.000176,2]
[404157095,1769886157706,-500.0,0.000176,2]
[404157096,1769886157838,-500.0,0.000176,2]
[404157097,1769886157865,-500.0,0.000176,2]
[404157098,1769886157893,-500.0,0.000176,2]
[404157099,1769886157919,-500.0,0.000176,2]
[404157100,1769886157946,-572.16127358,0.000176,2]
[404157101,1769886157974,-500.0,0.000176,2]
[404157102,1769886157999,-500.0,0.000176,2]
[404157103,1769886158027,-500.0,0.000176,2]
[404157104,1769886158055,-500.0,0.000176,2]
[404157105,1769886158080,-500.0,0.000176,2]
[404157106,1769886158106,-500.0,0.000176,2]
[404157107,1769886158131,-500.0,0.000176,2]
[404157108,1769886158158,-500.0,0.000176,2]
[404157109,1769886158186,-500.0,0.000176,2]
[404157110,1769886158213,-500.0,0.000176,2]
[404157111,1769886158239,-500.0,0.000176,2]
[404157112,1769886158264,-500.0,0.000176,2]
[404157113,1769886158290,-500.0,0.000176,2]
[404157114,1769886158318,-159.05852257,0.000176,2]
[404157115,1769886158345,-500.0,0.000176,2]
[404157116,1769886158372,-151.0,0.000176,2]
[404157117,1769886158397,-1496.22431387,0.000176,2]
[404157118,1769886158426,-27580.81295479,0.00017601,2]
[404157119,1769886158465,-50000.0,0.00017601,2]
[404157120,1769886158508,-50000.0,0.00017601,2]
[404157121,1769886159424,-50000.0,0.00017601,2]
[404157122,1769886160041,-50000.0,0.00017601,2]
[404157123,1769886160637,-50000.0,0.00017601,2]
[404157124,1769886165188,-50000.0,0.00017601,2]
[404157125,1769886184628,500.0,0.00013273,2]
[404157130,1769886243239,183.0826609,0.00013699,2]
[404157131,1769886244645,507.76073264,0.00013699,2]
[404157132,1769886246948,-300.0,0.00016593,2]
[404157133,1769886246972,-500.0,0.00016594,2]
[404157134,1769886247001,-500.0,0.00016594,2]
[404157135,1769886247026,-500.0,0.00016594,2]
[404157136,1769886247051,-500.0,0.00016594,2]
[404157137,1769886247076,-500.0,0.00016594,2]
[404157138,1769886247101,-500.0,0.00016594,2]
[404157139,1769886247126,-207.74396697,0.00016594,2]
[404157140,1769886247151,-500.0,0.00016594,2]
[404157141,1769886247175,-500.0,0.00016594,2]
[404157142,1769886247199,-500.0,0.00016594,2]
[404157143,1769886247223,-230.2616739,0.00016594,2]
[404157144,1769886247250,-500.0,0.00016594,2]
[404157145,1769886247275,-500.0,0.00016594,2]
[404157146,1769886247300,-500.0,0.00016594,2]
[404157147,1769886247325,-500.0,0.00016594,2]
[404157148,1769886247351,-500.0,0.00016594,2]
[404157149,1769886247376,-500.0,0.00016594,2]
[404157150,1769886247401,-201.81526621,0.00016594,2]
[404157151,1769886247426,-500.0,0.00016594,2]
[404157152,1769886247452,-500.0,0.00016594,2]
[404157153,1769886247478,-500.0,0.00016594,2]
[404157154,1769886247505,-500.0,0.00016594,2]
[404157155,1769886247531,-500.0,0.00016594,2]
[404157156,1769886247556,-500.0,0.00016594,2]
[404157157,1769886247582,-500.0,0.00016594,2]
[404157158,1769886247610,-500.0,0.00016594,2]
[404157159,1769886247634,-500.0,0.00016594,2]
[404157160,1769886247660,-500.0,0.00016594,2]
[404157161,1769886247686,-500.0,0.00016594,2]
[404157162,1769886247710,-500.0,0.00016594,2]
[404157163,1769886247734,-500.0,0.00016594,2]
[404157164,1769886247760,-500.0,0.00016594,2]
[404157165,1769886247785,-500.0,0.00016594,2]
[404157166,1769886247810,-500.0,0.00016594,2]
[404157167,1769886247835,-500.0,0.00016594,2]
[404157168,1769886247864,-500.0,0.00016594,2]
[404157169,1769886247889,-500.0,0.00016594,2]
[404157170,1769886247915,-500.0,0.00016594,2]
[404157171,1769886247940,-500.0,0.00016594,2]
[404157172,1769886247966,-218.69684025,0.00016594,2]
[404157173,1769886247994,-500.0,0.00016594,2]
[404157174,1769886248021,-500.0,0.00016594,2]
[404157175,1769886248047,-500.0,0.00016594,2]
[404157176,1769886248071,-500.0,0.00016594,2]
[404157177,1769886248096,-500.0,0.00016594,2]
[404157178,1769886248120,-500.0,0.00016594,2]
[404157179,1769886248146,-500.0,0.00016594,2]
[404157180,1769886248173,-500.0,0.00016594,2]
[404157181,1769886248199,-500.0,0.00016594,2]
[404157182,1769886248225,-500.0,0.00016594,2]
[404157183,1769886248253,-500.0,0.00016594,2]
[404157184,1769886248279,-500.0,0.00016594,2]
[404157185,1769886248304,-500.0,0.00016594,2]
[404157186,1769886248330,-500.0,0.00016594,2]
[404157187,1769886248356,-500.0,0.00016594,2]
[404157188,1769886248382,-500.0,0.00016594,2]
[404157189,1769886248409,-500.0,0.00016594,2]
[404157190,1769886248435,-500.0,0.00016594,2]
[404157191,1769886248461,-500.0,0.00016594,2]
[404157192,1769886248488,-529.86221745,0.00016594,2]
[404157193,1769886248518,-500.0,0.00016594,2]
[404157194,1769886248543,-500.0,0.00016594,2]
[404157195,1769886248570,-500.0,0.00016594,2]
[404157196,1769886248598,-500.0,0.00016594,2]
[404157197,1769886248623,-500.0,0.00016594,2]
[404157198,1769886248651,-500.0,0.00016594,2]
[404157199,1769886248681,-500.0,0.00016594,2]
[404157200,1769886248709,-500.0,0.00016594,2]
[404157201,1769886248742,-500.0,0.00016594,2]
[404157202,1769886248772,-500.0,0.00016594,2]
[404157203,1769886248799,-500.0,0.00016594,2]
[404157204,1769886248828,-500.0,0.00016594,2]
[404157205,1769886248858,-500.0,0.00016594,2]
[404157206,1769886248885,-500.0,0.00016594,2]
[404157207,1769886248913,-500.0,0.00016594,2]
[404157208,1769886248941,-500.0,0.00016594,2]
[404157209,1769886249065,-500.0,0.00016594,2]
[404157210,1769886249093,-500.0,0.00016594,2]
[404157211,1769886249119,-500.0,0.00016594,2]
[404157212,1769886249148,-500.0,0.00016594,2]
[404157213,1769886249174,-500.0,0.00016594,2]
[404157214,1769886249198,-500.0,0.00016594,2]
[404157215,1769886249225,-500.0,0.00016594,2]
[404157216,1769886249253,-500.0,0.00016594,2]
[404157217,1769886249281,-500.0,0.00016594,2]
[404157218,1769886249307,-500.0,0.00016594,2]
[404157219,1769886249333,-500.0,0.00016594,2]
[404157220,1769886249358,-500.0,0.00016594,2]
[404157221,1769886249383,-207.74396697,0.00016594,2]
[404157222,1769886249408,-1000.0,0.00016738,2]
[404157223,1769886249434,-300.0,0.00016925,2]
[404157224,1769886249460,-300.0,0.00016925,2]
[404157225,1769886249484,-300.0,0.00016925,2]
[404157226,1769886249511,-300.0,0.00016925,2]
[404157227,1769886249536,-300.0,0.00016925,2]
[404157228,1769886249562,-300.0,0.00016925,2]
[404157229,1769886249593,-300.0,0.00016925,2]
[404157230,1769886249620,-300.0,0.00016925,2]
[404157231,1769886249647,-300.0,0.00016925,2]
[404157232,1769886249677,-300.0,0.00016925,2]
[404157233,1769886249704,-300.0,0.00016925,2]
[404157234,1769886249731,-300.0,0.00016925,2]
[404157235,1769886249761,-300.0,0.00016925,2]
[404157236,1769886249787,-300.0,0.00016925,2]
[404157237,1769886249818,-300.0,0.00016925,2]
[404157238,1769886249847,-600.0,0.00016925,2]
[404157239,1769886249876,-215.72115994,0.00017579,2]
[404157240,1769886249905,-288.15490831,0.00017579,2]
[404157241,1769886249984,-211.84509169,0.00017579,2]
[404157242,1769886250012,-275.4442277,0.00017579,2]
[404157243,1769886250037,-1166.70663424,0.00017587,2]
[404157244,1769886250062,-2389.07543337,0.000176,2]
[404157245,1769886250087,-3910.33308255,0.0001769,2]
[404157246,1769886250110,-300.0,0.000178,2]
[404157247,1769886250135,-1000.0,0.00017801,2]
[404157248,1769886250159,-500.0,0.00017801,2]
[404157249,1769886250187,-500.0,0.00017801,2]
[404157250,1769886250222,-521.95437135,0.00017801,2]
[404157251,1769886250251,-500.0,0.00017801,2]
[404157252,1769886250277,-500.0,0.00017801,2]
[404157253,1769886250304,-500.0,0.00017801,2]
[404157254,1769886250330,-500.0,0.00017801,2]
[404157255,1769886250354,-530.03606409,0.00017801,2]
[404157256,1769886250378,-1016.21861595,0.00017801,2]
[404157257,1769886250403,-35678.38647906,0.00017801,2]
[404157258,1769886250456,-14321.61352094,0.00017801,2]
[404157259,1769886250481,-2902.86476449,0.00017861,2]
[404157260,1769886250508,-420.0,0.00017883,2]
[404157261,1769886250533,-420.0,0.00017883,2]
[404157262,1769886250558,-420.0,0.00017883,2]
[404157263,1769886250583,-287.56683176,0.00017914,2]
[404157264,1769886250608,-1680.0,0.00017972,2]
[404157265,1769886250634,-3440.26862406,0.00018012,2]
[404157266,1769886250657,-5322.39780681,0.00018076,2]
[404157267,1769886250683,-420.0,0.00018131,2]
[404157268,1769886250707,-293.6305423,0.0001839,2]
[404157269,1769886250731,-4180.12526087,0.0001839,2]
[404157270,1769886250759,-6951.70325787,0.00018464,2]
[404157271,1769886250785,-720.0,0.00018617,2]
[404157272,1769886250810,-4846.24,0.00018922,2]
[404157273,1769886250834,-726.74827646,0.00019039,2]
[404157274,1769886250860,-168.08,0.000193,2]
[404157275,1769886250887,-811.16,0.000193,2]
[404157276,1769886250911,-169.16,0.000193,2]
[404157277,1769886250937,-1498.44111444,0.000193,2]
[404157278,1769886303107,514.11733401,0.00013273,2]
[404157279,1769886303266,500.0,0.00013273,2]
[404157280,1769886303303,1046.50869035,0.00013821,2]
[404157281,1769886309968,250.0,0.00036787,119]
[404157282,1769886310575,250.0,0.00036787,118]
[404157283,1769886311222,250.0,0.00036787,73]
[404157284,1769886313092,186.45,0.00036787,119]
[404157285,1769886326918,273.29,0.00036787,119]
[404157286,1769886357802,-500.0,0.00016594,2]
[404157287,1769886357834,-500.0,0.00016594,2]
[404157288,1769886357865,-500.0,0.00016594,2]
[404157289,1769886357900,-500.0,0.00016594,2]
[404157290,1769886357933,-650.0,0.00016594,2]
[404157291,1769886357965,-500.0,0.00016594,2]
[404157292,1769886357995,-500.0,0.00016594,2]
[404157293,1769886358027,-500.0,0.00016594,2]
[404157294,1769886358056,-507.75869602,0.00016594,2]
[404157295,1769886358094,-184.49260796,0.00016594,2]
[404157296,1769886358444,-315.50739204,0.00016594,2]
[404157297,1769886358475,-500.0,0.00016594,2]
[404157298,1769886358505,-500.0,0.00016594,2]
[404157299,1769886358535,-500.0,0.00016594,2]
[404157300,1769886358565,-500.0,0.00016594,2]
[404157301,1769886363077,300.0,0.00016593,2]
[404157302,1769886364919,300.0,0.00016593,2]
[404157303,1769886368023,504.96753149,0.00036787,120]
[404157304,1769886370946,511.24183017,0.00036787,120]
[404157305,1769886380079,468.54905676,0.00036787,120]
[404157306,1769886415570,186.52448351,0.00016362,2]
[404157307,1769886423528,300.0,0.00016593,2]
[404157308,1769886436157,-151.22484671,0.00016594,2]
[404157309,1769886440297,-151.22484671,0.00016594,2]
[404157310,1769886440320,-49697.55030658,0.00016594,2]
[404157312,1769886477648,4282.47073241,0.00016594,2]
[404157313,1769886477675,717.52926759,0.00016594,2]
[404157314,1769886479890,323.9,3.436e-05,2]
[404157315,1769886480204,323.9,3.436e-05,2]
[404157316,1769886480497,323.9,3.436e-05,2]
[404157317,1769886482865,300.0,0.00016593,2]
[404157318,1769886483981,500.0,0.00013273,2]
[404157319,1769886484025,610.42597811,0.00013821,2]
[404157320,1769886486117,3274.01467555,0.00016594,2]